[Event "German-ch Blitz Women 2022"]
[Site "Magdeburg"]
[Date "2022.08.13"]
[Round "13.10"]
[White "Zhou, Lepu Coco"]
[Black "Braun, Kristin"]
[Result "1-0"]
[ECO "B52"]
[WhiteElo "1986"]
[BlackElo "1897"]
[Annotator "TA"]
[PlyCount "109"]
[EventDate "2022.08.10"]
[EventType "tourn"]
[EventCountry "GER"]
[SourceTitle "playchess.com"]
[Source "ChessBase"]
[SourceQuality "1"]
[TimeControl "180+2"]

{[%evp 22,109,33,0,0,0,30,-11,-3,-32,13,0,-4,-33,-43,-41,-33,-33,-29,-96,-87,-84,-87,-97,-102,-100,-94,-116,-10,-94,0,-6,-17,-100,-58,-45,-42,-108,-80,-86,394,0,731,716,679,400,424,427,451,379,418,422,433,422,420,400,416,416,427,424,470,413,405,374,456,184,279,0,451,451,433,425,411,406,456,451,418,420,592,573,881,869,844,829,887,882,29981,29981,29985,29986]} 1. e4 c5 2. Nf3 d6 3. Bb5+ {[%emt 0:00:06]} Bd7 {[%emt 0:00:01]} 4. Bxd7+ {[%emt 0:00:01]} Qxd7 {[%emt 0:00:00]} 5. c4 {[%emt 0:00:01]} Nf6 {[%emt 0:00:01]} 6. Nc3 Nc6 7. O-O {[%emt 0:00:05]} g6 {[%emt 0:00:01]} 8. d4 {[%emt 0:00:01]} cxd4 {[%emt 0:00:01]} 9. Nxd4 {[%emt 0:00:01]} Bg7 {[%emt 0:00:00]} 10. Be3 {[%emt 0:00:08]} O-O {[%emt 0:00:02]} 11. f3 {[%emt 0:00:01]} a6 {[%emt 0:00:05]} 12. Rc1 {[%emt 0:00:06]} Nxd4 {[%emt 0:00:04] B52: Sicilian: Moscow Variation with 3...Bd7.} 13. Bxd4 {[%emt 0:00:02]} Rac8 {[%emt 0:00:01] [#]} 14. Nd5 $146 {[%emt 0:00:13]} ({Predecessor:} 14. Qd3 Qe6 15. b3 Bh6 16. f4 b5 17. cxb5 axb5 18. f5 Qd7 19. Rce1 b4 20. Bxf6 exf6 {1-0 (43) Haghayegh,J (2066)-Engl,H (2018) Bayern 2003}) 14... Nxd5 {[%emt 0:00:13] The position is equal.} 15. exd5 {[%emt 0:00:01]} e5 {[%emt 0:00:06]} 16. Be3 {[%emt 0:00:12]} b5 {[%emt 0:00:17]} 17. c5 {[%emt 0:00:04]} dxc5 {[%emt 0:00:07]} 18. Rxc5 {[%emt 0:00:18]} Rxc5 {[%emt 0:00:06]} 19. Bxc5 {[%emt 0:00:02]} Rd8 {[%emt 0:00:01]} 20. d6 {[%emt 0:00:11]} (20. Bb6 $1 $11 Rc8 21. Qd3) 20... Bf8 {[%emt 0:00:04][%cal Rf8d6]} 21. Bb6 {[%emt 0:00:22]} Re8 {[%emt 0:00:05]} 22. Bc7 {[%emt 0:00:03]} Re6 {[%emt 0:00:04][%cal Rf8d6]} 23. Qd5 {[%emt 0:00:29]} Bxd6 {[%emt 0:00:15]} 24. Rc1 {[%emt 0:00:18]} Kf8 {[%emt 0:00:35]} (24... Qc8 $17 25. Qc6 Bf8) 25. Bb6 {[%emt 0:00:19] [#]} (25. Rc6 $11 {keeps the balance.} Ke7 26. Bxd6+ Rxd6 27. Qxe5+ Qe6 28. Rc7+ Rd7 29. Qxe6+ (29. Qc5+ Ke8 $11) 29... Kxe6 30. Rxd7 Kxd7 31. Kf2) 25... Qe7 {[%emt 0:00:14]} ({Black should play} 25... e4 $1 $17 {[%cal Od6h2] Threatens to win with ...Bxh2+!} 26. fxe4 {[#]} Bxh2+ $1 27. Kxh2 Qxd5 28. exd5 Rxb6) 26. Be3 $36 {[%emt 0:00:06][%mdl 2048] Strongly threatening Bh6+. White fights for an advantage.} Kg7 {[%emt 0:00:10] Inhibits Bh6+.} 27. Qd2 {[%emt 0:00:01]} (27. Rc6 $1 $11) 27... f5 {[%emt 0:00:09]} 28. Bh6+ {[%emt 0:00:02]} Kf7 {[%emt 0:00:01]} 29. Bg5 {[%emt 0:00:11]} ({White should try} 29. Qd5 $15) 29... Qa7+ {[%emt 0:00:08]} 30. Kf1 {[%emt 0:00:02]} Bf8 $2 {[%emt 0:00:25][%mdl 8192]} (30... Qd4 $17 {keeps the pressure on.}) 31. Qd8 $2 {[%emt 0:00:06]} ({White has to play} 31. Qd5 $18 Qb6 32. Qd7+ (32. Rc8 Qd6 $11) 32... Re7 33. Bxe7 Bxe7 34. Rc6) 31... Be7 $2 {[%emt 0:00:19][%mdl 8192]} (31... Qd4 $11) 32. Rc7 $18 {[%emt 0:00:13][%cal Rg5e7] Intending Bxe7 and mate.} Qc5 {[%emt 0:00:19]} 33. Rxc5 {Rc7 would kill now.} Bxd8 34. Bxd8 {[%emt 0:00:05][%mdl 4096] Endgame KRB-KR} Rd6 {[%emt 0:00:01]} 35. Rc7+ {[%emt 0:00:03]} Ke8 {[%emt 0:00:03]} 36. Bg5 {[%emt 0:00:01]} Rd1+ {[%emt 0:00:03]} 37. Ke2 Rb1 38. Rc2 {[%emt 0:00:07]} Kf7 {[%emt 0:00:03]} 39. b3 {[%emt 0:00:05]} Rg1 {[%emt 0:00:01]} 40. Kf2 {[%emt 0:00:01]} Rd1 {[%emt 0:00:01]} 41. Rd2 {[%emt 0:00:02]} Ra1 {[%emt 0:00:02]} 42. g4 {[%emt 0:00:02]} f4 {[%emt 0:00:01]} 43. Rd7+ {[%emt 0:00:02]} (43. Re2 $142) 43... Kg8 {[%emt 0:00:04]} (43... Ke6 $142 44. Rd2 (44. Rxh7 Rxa2+ 45. Ke1 Ra1+ 46. Kd2 Ra2+ 47. Kc3 Rf2 $16) 44... Rh1) 44. Rd2 $2 {[%emt 0:00:02]} (44. Bf6) 44... Kf7 {[%emt 0:00:00]} 45. Bd8 {[%emt 0:00:03]} Ke6 {[%emt 0:00:03]} 46. Bc7 {[%emt 0:00:01]} Rc1 {[%emt 0:00:02]} 47. Ba5 {[%emt 0:00:02]} Rc6 {[%emt 0:00:03]} 48. Re2 {[%emt 0:00:04]} g5 {[%emt 0:00:04]} 49. Bd8 {[%emt 0:00:01]} Rd6 {[%emt 0:00:02]} (49... h6 $142 50. Ba5 Kf6) 50. Bxg5 {[%emt 0:00:02]} Rc6 {[%emt 0:00:02]} 51. Bxf4 {[%emt 0:00:01]} Rc5 {[%emt 0:00:02]} 52. Be3 {[%emt 0:00:02]} Rc3 {[%emt 0:00:03]} 53. f4 {[%emt 0:00:01]} exf4 {[%emt 0:00:06]} 54. Bd4+ Kd5 55. Bxc3 {[%emt 0:00:03] Weighted Error Value: White=0.57/Black=0.64} 1-0

[Event "German-ch Blitz Women 2022"]
[Site "Magdeburg"]
[Date "2022.08.13"]
[Round "13.11"]
[White "Muetsch, Annmarie"]
[Black "Grabowski, Petra"]
[Result "1-0"]
[ECO "C02"]
[WhiteElo "2249"]
[BlackElo "1643"]
[Annotator "TA"]
[PlyCount "63"]
[EventDate "2022.08.10"]
[EventType "tourn"]
[EventCountry "GER"]
[SourceTitle "playchess.com"]
[Source "ChessBase"]
[SourceQuality "1"]
[TimeControl "180+2"]

{[%evp 19,63,26,41,32,40,27,32,33,53,50,108,107,101,102,175,172,167,152,278,274,301,254,253,254,291,228,257,247,353,341,518,548,814,807,817,807,1156,1135,1144,1112,1183,1184,5127,3339,1929,1352]} 1. e4 {[%emt 0:00:01]} e6 {[%emt 0:00:01]} 2. d4 {[%emt 0:00:01]} d5 3. e5 c5 {[%emt 0:00:02]} 4. c3 {[%emt 0:00:01]} Nc6 5. Nf3 Bd7 {[%emt 0:00:03]} 6. Be2 {[%emt 0:00:04]} Qb6 {[%emt 0:00:04]} 7. O-O {[%emt 0:00:06]} cxd4 {[%emt 0:00:02]} 8. cxd4 {[%emt 0:00:01]} Nh6 {[%emt 0:00:07]} 9. Nc3 {[%emt 0:00:17]} Nf5 {[%emt 0:00:05]} 10. Na4 {[%emt 0:00:01]} Qd8 {[%emt 0:00:19]} 11. Bg5 {[%emt 0:00:11] C02: French: Advance Variation.} Be7 {[%emt 0:00:04]} 12. Bxe7 {[%emt 0:00:03]} Qxe7 {[%emt 0:00:13]} 13. Rc1 {[%emt 0:00:08] White is slightly better.} O-O {[%emt 0:00:02]} 14. Nc5 $1 {[%emt 0:00:04] [#]} b6 $146 {[%emt 0:00:10]} (14... Bc8 $14) ({Predecessor:} 14... Bc8 15. Bb5 Nb8 16. g3 b6 17. Nd3 Bd7 18. Qa4 Bxb5 19. Qxb5 Qd7 20. Qxd7 Nxd7 {1-0 (61) Indjic,A (2613)-Papp,L (2399) Chess.com INT 2022}) 15. Nxd7 $16 {[%emt 0:00:09]} Qxd7 {[%emt 0:00:01]} 16. Bb5 {[%emt 0:00:05]} Rac8 {[%emt 0:00:06]} (16... Nfe7 $16) 17. Qa4 $18 {[%emt 0:00:04]} Nfe7 {[%emt 0:00:09]} 18. Rc3 $36 {[%emt 0:00:06][%mdl 2048] [#] Hoping for Rfc1. White is really pushing.} Qb7 {[%emt 0:00:01]} (18... a6 $16 {might work better.}) 19. Ba6 {[%emt 0:00:03]} Qd7 {[%emt 0:00:07]} 20. Bxc8 {[%emt 0:00:03]} Rxc8 {[%emt 0:00:01]} 21. Rfc1 {[%emt 0:00:04]} h6 {[%emt 0:00:09]} 22. Qc2 {[%emt 0:00:16]} a6 {[%emt 0:00:11]} 23. b4 {[%emt 0:00:05]} b5 {[%emt 0:00:17]} (23... Qb7 $142 24. Qd3 Re8) 24. Nd2 {[%emt 0:00:17][%cal Bf3d2,Bd2b3,Bb3a5][%mdl 32]} Kh8 {[%emt 0:00:07]} (24... Qd8 $142 25. Nb3 Qf8) 25. Nb3 {[%emt 0:00:03] White is clearly winning.} g6 {[%emt 0:00:05]} 26. Na5 {[%emt 0:00:06]} Na7 {[%emt 0:00:10]} 27. Rc7 {[%emt 0:00:11]} Rxc7 {[%emt 0:00:05]} 28. Qxc7 {[%emt 0:00:02]} Qxc7 {[%emt 0:00:03]} 29. Rxc7 {[%emt 0:00:02]} Nac8 {[%emt 0:00:07]} 30. Nc6 {[%emt 0:00:02]} Nxc6 {[%emt 0:00:17]} 31. Rxc8+ {[%emt 0:00:02]} Kg7 {[%emt 0:00:03]} 32. Rxc6 {[%emt 0:00:01] Black did not feel at home in the position after the opening.  Weighted Error Value: White=0.07 (flawless) /Black=0.60} 1-0

[Event "German-ch Blitz Women 2022"]
[Site "Magdeburg"]
[Date "2022.08.13"]
[Round "13.12"]
[White "Daemering, Katrin"]
[Black "Khrapko, Marharyta"]
[Result "1-0"]
[ECO "B32"]
[WhiteElo "1965"]
[BlackElo "2128"]
[Annotator "NA RC"]
[PlyCount "83"]
[EventDate "2022.08.10"]
[EventType "tourn"]
[EventCountry "GER"]
[SourceTitle "playchess.com"]
[Source "ChessBase"]
[SourceQuality "1"]
[TimeControl "180+2"]

1. e4 {[%emt 0:00:01]} c5 {[%emt 0:00:01]} 2. Nf3 {[%emt 0:00:00]} Nc6 {[%emt 0:00:00]} 3. d4 {[%emt 0:00:01]} cxd4 {[%emt 0:00:01]} 4. c3 {[%emt 0:00:01]} d3 {[%emt 0:00:02]} 5. Bxd3 {[%emt 0:00:01]} e5 {[%emt 0:00:03]} 6. O-O {[%emt 0:00:02]} Be7 {[%emt 0:00:01]} 7. Re1 {[%emt 0:00:03]} d6 {[%emt 0:00:02]} 8. h3 {[%emt 0:00:01]} Nf6 {[%emt 0:00:02]} 9. Be3 {[%emt 0:00:05]} O-O {[%emt 0:00:03]} 10. c4 {[%emt 0:00:02]} Be6 {[%emt 0:00:08]} 11. Nc3 {[%emt 0:00:09]} Rc8 {[%emt 0:00:02]} 12. b3 {[%emt 0:00:09]} Nb4 {[%emt 0:00:12]} 13. Bf1 {[%emt 0:00:09]} a6 {[%emt 0:00:05]} 14. Rc1 {[%emt 0:00:07]} Qa5 {[%emt 0:00:09]} 15. Qd2 {[%emt 0:00:02]} Kh8 {[%emt 0:00:21]} 16. Red1 {[%emt 0:00:06]} Nc6 {[%emt 0:00:24]} 17. Ne1 {[%emt 0:00:10]} Ne8 {[%emt 0:00:11]} 18. f3 {[%emt 0:00:09]} f5 {[%emt 0:00:04]} 19. Qf2 {[%emt 0:00:03]} Bd8 {[%emt 0:00:16]} 20. exf5 {[%emt 0:00:08]} Bxf5 {[%emt 0:00:06]} 21. Nd5 {[%emt 0:00:08]} b5 {[%emt 0:00:15]} 22. Nb6 {[%emt 0:00:42]} Rb8 {[%emt 0:00:27]} 23. cxb5 {[%emt 0:00:03]} Nd4 {[%emt 0:00:10]} 24. Nc4 {[%emt 0:00:11]} Qb4 {[%emt 0:00:34]} 25. bxa6 {[%emt 0:00:07]} Bf6 {[%emt 0:00:06]} 26. Nd3 {[%emt 0:00:11]} Qb5 {[%emt 0:00:04]} 27. Ndb2 {[%emt 0:00:08]} Qd7 {[%emt 0:00:03]} 28. a4 {[%emt 0:00:09]} d5 {[%emt 0:00:02]} 29. Nxe5 {[%emt 0:00:04]} Bxe5 {[%emt 0:00:02]} 30. Bxd4 {[%emt 0:00:01]} Bf4 {[%emt 0:00:01]} 31. Rc3 {[%emt 0:00:07]} Ra8 {[%emt 0:00:02]} 32. Qh4 {[%emt 0:00:08]} Bd6 {[%emt 0:00:04]} 33. Nd3 {[%emt 0:00:05]} Nf6 {[%emt 0:00:01]} 34. Nc5 {[%emt 0:00:03]} Qe7 {[%emt 0:00:02]} 35. Re3 {[%emt 0:00:07]} Qf7 {[%emt 0:00:02]} 36. Nd3 {[%emt 0:00:04]} Rfb8 {[%emt 0:00:01]} 37. Ne5 {[%emt 0:00:05]} Qg8 {[%emt 0:00:01]} 38. Qg5 {[%emt 0:00:03]} Qc8 {[%emt 0:00:02]} 39. Nf7+ {[%emt 0:00:02]} Kg8 {[%emt 0:00:02]} 40. Nxd6 {[%emt 0:00:01]} Qc2 {[%emt 0:00:03]} 41. Nxf5 {[%emt 0:00:04]} Ne8 {[%emt 0:00:02]} 42. Rxe8+ {[%emt 0:00:05]} 1-0

[Event "German-ch Blitz Women 2022"]
[Site "Magdeburg"]
[Date "2022.08.13"]
[Round "14.1"]
[White "Paehtz, Elisabeth"]
[Black "Khrapko, Marharyta"]
[Result "0-1"]
[ECO "A43"]
[WhiteElo "2484"]
[BlackElo "2128"]
[Annotator "TA"]
[PlyCount "62"]
[EventDate "2022.08.10"]
[EventType "tourn"]
[EventCountry "GER"]
[SourceTitle "playchess.com"]
[Source "ChessBase"]
[SourceQuality "1"]
[TimeControl "180+2"]

{[%evp 17,62,19,23,15,21,17,20,27,115,113,138,50,87,58,74,58,232,220,223,217,386,376,652,581,530,583,577,585,575,581,564,569,647,520,557,545,825,821,815,802,996,995,1147,1147,1147,1112,996]} 1. d4 c5 2. c3 {[%emt 0:00:02]} e6 {[%emt 0:00:02]} 3. Nf3 {[%emt 0:00:01]} Nc6 {[%emt 0:00:01]} 4. Bf4 {[%emt 0:00:03]} b6 {[%emt 0:00:09]} 5. e3 {[%emt 0:00:01]} Bb7 {[%emt 0:00:01]} 6. Nbd2 {[%emt 0:00:03]} Nf6 {[%emt 0:00:03]} 7. Bd3 {[%emt 0:00:02]} d6 {[%emt 0:00:01]} 8. O-O {[%emt 0:00:05]} Be7 {[%emt 0:00:01]} 9. h3 {[%emt 0:00:02]} O-O {[%emt 0:00:02]} 10. Bh2 {[%emt 0:00:01] A47: 1 d4 Nf6 2 Nf3 b6: Torre, London and Colle Systems.} Re8 {[%emt 0:00:08]} 11. Qe2 {[%emt 0:00:19]} Bf8 {[%emt 0:00:03]} 12. Rad1 {[%emt 0:00:06] [#] The position is equal.} e5 $146 {[%emt 0:00:15] [#]} (12... d5 $11 {remains equal.}) ({Predecessor:} 12... cxd4 13. exd4 e5 14. dxe5 Nxe5 15. Nxe5 dxe5 16. Ne4 Nxe4 17. Bxe4 Qc8 18. Rfe1 Bxe4 19. Qxe4 {0-1 (27) Suvrajit,S (2198)-Janaszak,D (2348) Chess.com INT 2021}) 13. dxe5 $1 $16 {[%emt 0:00:02]} dxe5 {[%emt 0:00:04]} 14. Nc4 {[%emt 0:00:17]} (14. Ng5 $16) 14... Qb8 {[%emt 0:00:19]} 15. a4 {[%emt 0:00:20]} Qc7 {[%emt 0:00:36]} 16. Ng5 {[%emt 0:00:10]} a6 $2 {[%emt 0:00:43] [#] This costs Black the game.} (16... Rad8 $14) 17. f4 $1 $18 {[%emt 0:00:20][%cal Bf2f4,Bf4f5][%mdl 32] aiming for fxe5.} e4 {[%emt 0:00:02]} 18. Bc2 {[%emt 0:00:04] f5 is the strong threat.} h6 $2 {[%emt 0:00:26]} (18... Red8 19. f5 (19. Nxe4 Nxe4 20. Bxe4 b5 $16) 19... Qe7) 19. f5 {[%emt 0:00:01]} Qc8 {[%emt 0:00:03]} (19... Ne5) 20. Nxb6 {[%emt 0:00:03] White is clearly winning.} hxg5 {[%emt 0:00:28]} 21. Nxc8 {[%emt 0:00:02]} Raxc8 {[%emt 0:00:01]} 22. Bb3 {[%emt 0:00:09]} Na5 {[%emt 0:00:02]} 23. Bc4 {[%emt 0:00:04]} Nxc4 {[%emt 0:00:05]} 24. Qxc4 {[%emt 0:00:01]} Rcd8 {[%emt 0:00:06]} 25. Bc7 {[%emt 0:00:14]} Rc8 {[%emt 0:00:05]} 26. Bd6 {[%emt 0:00:09]} Nh5 {[%emt 0:00:03]} 27. Bxf8 {[%emt 0:00:03]} Rxf8 {[%emt 0:00:01]} 28. Kh2 {[%emt 0:00:02]} a5 {[%emt 0:00:04]} 29. Rd6 {[%emt 0:00:03]} Rc7 {[%emt 0:00:03]} 30. Rfd1 {[%emt 0:00:05]} Bc8 {[%emt 0:00:01]} 31. g4 {[%emt 0:00:03]} Nf6 {[%mdl 32768] Weighted Error Value: White=0.17 (very precise) /Black=0.71. Loss on time!?} 0-1

[Event "German-ch Blitz Women 2022"]
[Site "Magdeburg"]
[Date "2022.08.13"]
[Round "14.2"]
[White "Grabowski, Petra"]
[Black "Daemering, Katrin"]
[Result "0-1"]
[ECO "B06"]
[WhiteElo "1643"]
[BlackElo "1965"]
[Annotator "TA"]
[PlyCount "144"]
[EventDate "2022.08.10"]
[EventType "tourn"]
[EventCountry "GER"]
[SourceTitle "playchess.com"]
[Source "ChessBase"]
[SourceQuality "1"]
[TimeControl "180+2"]

{[%evp 9,143,25,41,37,83,59,73,81,98,80,89,26,69,-60,-38,-43,-36,-166,-18,-26,-28,-18,-16,-21,195,0,14,-122,-110,-131,-12,-110,-60,-61,-62,-282,-290,-267,-251,-238,-216,-276,-238,-339,-315,-441,-430,-445,-435,-520,-514,-556,-549,-1016,-667,-658,-639,-899,-851,-826,-687,-890,-870,-815,-801,-801,-773,-792,-780,-791,-657,-777,-779,-770,-751,-918,-894,-825,-628,-608,-557,-704,-704,-688,-676,-608,-486,-674,-680,-612,-519,-802,-514,-883,-883,-1086,-1065,-1599,-1572,-1571,-1532,-1482,-1447,-1414,-1319,-29992,-10760,-1710,-6805,-6141,-7107,-29978,-29979,-29979,-29980,-29979,-29980,-29981,-2855,-29987,-29988,-29989,-29986,-29988,-29989,-29991,-29992,-29992,-29993,-29993,-29994,-29995,-29996,-29997,-29996,-29999]} 1. d4 {[%emt 0:00:01]} d6 {[%emt 0:00:01]} 2. e4 {[%emt 0:00:02]} g6 {[%emt 0:00:01]} 3. Nc3 {[%emt 0:00:03]} Bg7 {[%emt 0:00:01]} 4. Be3 {[%emt 0:00:06]} Nf6 {[%emt 0:00:05]} 5. Nf3 {[%emt 0:00:06]} Nbd7 {[%emt 0:00:05]} 6. Qd2 {[%emt 0:00:04] B08: Pirc Defence: Classical System.} Ng4 {[%emt 0:00:08] Inhibits Bh6.} (6... O-O $14 {is superior.}) 7. Bg5 $16 {[%emt 0:00:03]} h6 {[%emt 0:00:03]} 8. Bh4 {[%emt 0:00:01] White is better.} c5 {[%emt 0:00:14]} 9. h3 {[%emt 0:00:12]} Ngf6 {[%emt 0:00:01] [#]} 10. Be2 $146 {[%emt 0:00:12]} (10. O-O-O $16) ({Predecessor:} 10. O-O-O cxd4 11. Nxd4 Nc5 12. f3 Qa5 13. Kb1 a6 14. Nd5 Qxd2 15. Rxd2 Nxd5 {½-½ (15) Quevedo,A (1789)-Campopiano,J (1785) Montevideo 2019}) 10... a6 {[%emt 0:00:05]} 11. e5 {[%emt 0:00:10]} (11. O-O-O $1 $14) 11... cxd4 $15 {[%emt 0:00:15]} 12. Qxd4 {[%emt 0:00:13]} dxe5 {[%emt 0:00:11]} 13. Nxe5 {[%emt 0:00:07] [#]} (13. Qb4 $15) 13... Nh5 {[%emt 0:00:20]} (13... Nh7 $1 $19 14. Nxf7 Bxd4 15. Nxd8 Bxc3+ 16. bxc3 Kxd8) 14. f4 $11 {[%emt 0:00:40] [#]} Nxf4 {[%emt 0:00:02]} 15. Qxf4 {[%emt 0:00:07][%csl Ge5][%cal Rf4f7]} Nxe5 {[%emt 0:00:02]} 16. Rd1 {[%emt 0:00:12]} Qb6 {[%emt 0:00:10] [#]} (16... Bd7 $11 {and Black has nothing to worry.} 17. Bf2 Qa5) 17. Qa4+ $2 {[%emt 0:00:29]} (17. Bxe7 $1 $18 {[%mdl 512] Black must now prevent Nd5.} Qxb2 (17... g5 18. Nd5) 18. Nd5 (18. Qd4 $2 Nf3+ 19. gxf3 Bxd4 $19)) 17... Bd7 {[%emt 0:00:05]} 18. Qb3 {[%emt 0:00:11]} (18. Qa3 $1 $11 O-O 19. Nd5) 18... Qxb3 $17 {[%emt 0:00:17]} 19. axb3 {[%emt 0:00:01]} e6 {[%emt 0:00:10] Inhibits Nd5.} (19... Rc8 $17 20. O-O Bf5) 20. O-O {[%emt 0:00:02]} (20. Ne4 $1 $11 {remains equal.} Bc6 21. Nf6+ Kf8 22. O-O) 20... O-O {[%emt 0:00:08]} ({Better is} 20... Bc6 $17 21. Na4 O-O) 21. Ne4 $15 {[%emt 0:00:06]} Bc6 $36 {[%emt 0:00:04][%mdl 2048] Black is pushing.} 22. Bd3 {[%emt 0:00:06] White is now going downhill.} (22. Nf6+ $15 Bxf6 23. Bxf6) 22... Nxd3 $19 {[%emt 0:00:07]} 23. cxd3 {[%emt 0:00:05]} g5 {[%emt 0:00:05]} 24. Bf2 {[%emt 0:00:12]} Bxb2 {[%emt 0:00:03]} 25. Rd2 {[%emt 0:00:09]} Bg7 {[%emt 0:00:03]} 26. Rc1 {[%emt 0:00:06]} (26. Bc5 {keeps fighting.}) 26... Rad8 {[%emt 0:00:03] Strongly threatening ...Bxe4.} 27. Rdc2 {[%emt 0:00:05]} Rxd3 {[%emt 0:00:03]} 28. Nc5 {[%emt 0:00:01]} Rd5 {[%emt 0:00:05]} 29. Na4 {[%emt 0:00:03]} Rfd8 {[%emt 0:00:05]} 30. Nc3 {[%emt 0:00:01]} Rd2 {[%emt 0:00:03]} 31. Kh2 {[%emt 0:00:04]} Rxc2 {[%emt 0:00:02]} 32. Rxc2 {[%emt 0:00:01]} Rd3 {[%emt 0:00:02]} 33. Nb1 {[%emt 0:00:02]} Rxb3 {[%emt 0:00:03]} 34. Nd2 {[%emt 0:00:01]} Rd3 {[%emt 0:00:01]} 35. Nf3 {[%emt 0:00:02]} Bxf3 {[%emt 0:00:02]} 36. gxf3 {[%emt 0:00:00]} Rxf3 {[%emt 0:00:02][%mdl 4096] Endgame KRB-KRB} 37. Kg2 {[%emt 0:00:01]} Rd3 {[%emt 0:00:03]} 38. Rc8+ {[%emt 0:00:01]} Kh7 {[%emt 0:00:01]} 39. Rc7 {[%emt 0:00:01]} Rd2 {[%emt 0:00:05]} 40. Kf3 {[%emt 0:00:01]} Rb2 {[%emt 0:00:06]} 41. Rxf7 {[%emt 0:00:02]} Rb3+ {[%emt 0:00:02]} 42. Kg2 {[%emt 0:00:02]} Kg6 {[%emt 0:00:01]} 43. Re7 {[%emt 0:00:02]} Rb2 {[%emt 0:00:08]} 44. Kf3 {[%emt 0:00:01]} Bf8 {[%emt 0:00:05]} 45. Rxe6+ {[%emt 0:00:02]} Kf5 {[%emt 0:00:01]} 46. Re8 {[%emt 0:00:01]} Bd6 {[%emt 0:00:02]} 47. Rd8 {[%emt 0:00:02]} Bc7 {[%emt 0:00:02]} 48. Rd7 {[%emt 0:00:02]} Rb3+ {[%emt 0:00:05]} 49. Kg2 {[%emt 0:00:01]} Bf4 50. Rh7 {[%emt 0:00:04]} (50. Rd5+ $142 Ke6 51. Rd8) 50... Kg6 {[%emt 0:00:02]} 51. Rd7 {[%emt 0:00:01]} (51. Rh8 $142) 51... a5 {[%emt 0:00:03]} 52. Re7 {[%emt 0:00:03]} a4 {[%emt 0:00:01]} 53. Re6+ {[%emt 0:00:01]} Kf5 {[%emt 0:00:01]} 54. Re8 {[%emt 0:00:01]} a3 {[%emt 0:00:01] Hoping for ...b5.} 55. Ra8 {[%emt 0:00:02]} b5 {[%emt 0:00:02][%cal Bb7b5,Bb5b4,Bb4b3][%mdl 32] ...Ke4 is the strong threat.} 56. Bd4 {[%emt 0:00:03]} b4 {[%emt 0:00:02] aiming for ...Ke4.} 57. Rb8 {[%emt 0:00:01]} a2 {[%emt 0:00:02]} (57... Bxb8 $142 58. Kf2 Be5 59. Bc5 a2 60. Kg1 a1=Q+ 61. Kg2 Qd1 62. Be3 Rxe3 63. Kf2 Rf3+ 64. Kg2 Qf1#) 58. Rb5+ {[%emt 0:00:04]} Ke4 {[%emt 0:00:01]} 59. Bg7 {[%emt 0:00:01]} h5 {[%emt 0:00:01] ( -> ...Rb1)} 60. Bf6 {[%emt 0:00:02]} Rb1 {[%emt 0:00:02]} 61. Ra5 {[%emt 0:00:02]} b3 {[%emt 0:00:02]} 62. Ra4+ {[%emt 0:00:03]} Kd3 {[%emt 0:00:01]} 63. Ra3 {[%emt 0:00:03]} Kc2 {[%emt 0:00:02]} (63... Be3 $142 64. Ra4 g4 65. hxg4 Rg1+ 66. Kh3 Rxg4 67. Ra8 Bd4 68. Bxd4 Rxd4 69. Kh2 Kc3 70. Kg2 Kb2 71. Kg3 a1=Q 72. Rxa1 Kxa1 73. Kf3 Ra4 74. Kg2 b2 75. Kh2 b1=Q 76. Kg3 Qb3+ 77. Kh2 Ra2+ 78. Kh1 Qd1#) 64. Bd4 {[%emt 0:00:02]} Bd2 {[%emt 0:00:05] Black mates.} 65. Bf6 {[%emt 0:00:02]} Bc1 {[%emt 0:00:02]} 66. Ra4 {[%emt 0:00:02]} Bb2 {[%emt 0:00:01]} 67. Rc4+ {[%emt 0:00:02]} Kd3 {[%emt 0:00:01]} 68. Rc6 {[%emt 0:00:04]} Bxf6 {[%emt 0:00:02]} 69. Rxf6 {[%emt 0:00:01]} a1=Q {[%emt 0:00:01]} 70. Rf3+ {[%emt 0:00:01]} Ke4 {[%emt 0:00:01]} 71. Rf7 {[%emt 0:00:02]} Rb2+ {[%emt 0:00:02]} 72. Kg3 {[%emt 0:00:01]} Qg1# {[%emt 0:00:01] Weighted Error Value: White=0.85/Black=0.52} 0-1